fUST/lending_fUST_20260521
["ID","MTS","AMOUNT","RATE_DAILY","PERIOD"]
[422718311,1779301838000,-151.5,8.219e-05,30]
[422718310,1779301838000,-151.5,8.219e-05,30]
[422718308,1779301838000,-151.5,8.219e-05,30]
[422718314,1779301838000,-323.42166538,8.219e-05,2]
[422718316,1779301838000,-597.58,8.219e-05,2]
[422718315,1779301838000,-500.0,8.219e-05,2]
[422718319,1779301838000,-192.685301,8.219e-05,2]
[422718317,1779301838000,-772.04,8.219e-05,2]
[422718318,1779301838000,-743.2,8.219e-05,2]
[422718320,1779301838000,-500.0,8.219e-05,2]
[422718266,1779301838000,-1072.08,8.219e-05,2]
[422718297,1779301838000,-612.12321064,8.219e-05,2]
[422718298,1779301838000,-1078.6,8.219e-05,2]
[422718309,1779301838000,-151.5,8.219e-05,30]
[422718295,1779301838000,-528.84815886,8.219e-05,2]
[422718274,1779301838000,-500.0,8.219e-05,2]
[422718290,1779301838000,-611.08,8.219e-05,2]
[422718273,1779301838000,-1509.14,8.219e-05,2]
[422718269,1779301838000,-660.55,8.219e-05,2]
[422718271,1779301838000,-500.0,8.219e-05,2]
[422718286,1779301838000,-537.24,8.219e-05,2]
[422718276,1779301838000,-500.0,8.219e-05,2]
[422718275,1779301838000,-500.0,8.219e-05,2]
[422718281,1779301838000,-880.79,8.219e-05,2]
[422718283,1779301838000,-500.0,8.219e-05,2]
[422718278,1779301838000,-500.0,8.219e-05,2]
[422718277,1779301838000,-500.0,8.219e-05,2]
[422718287,1779301838000,-1606.86,8.219e-05,2]
[422718292,1779301838000,-500.0,8.219e-05,2]
[422718291,1779301838000,-800.49,8.219e-05,2]
[422718279,1779301838000,-2207.11,8.219e-05,2]
[422718294,1779301838000,-500.0,8.219e-05,2]
[422718293,1779301838000,-184.978,8.219e-05,2]
[422718288,1779301838000,-500.0,8.219e-05,2]
[422718296,1779301838000,-1021.79,8.219e-05,2]
[422718285,1779301838000,-676.26,8.219e-05,2]
[422718282,1779301838000,-998.19,8.219e-05,2]
[422718280,1779301838000,-500.0,8.219e-05,2]
[422718284,1779301838000,-500.0,8.219e-05,2]
[422718358,1779301839000,-3142.43,8.219e-05,2]
[422718362,1779301839000,-500.0,8.219e-05,2]
[422718368,1779301839000,-3990.0,8.219e-05,2]
[422718360,1779301839000,-1870.68,8.219e-05,2]
[422718364,1779301839000,-848.41,8.219e-05,2]
[422718356,1779301839000,-5061.06,8.219e-05,2]
[422718367,1779301839000,-1576.69,8.219e-05,2]
[422718361,1779301839000,-966.34,8.219e-05,2]
[422718363,1779301839000,-956.76,8.219e-05,2]
[422718354,1779301839000,-500.0,8.219e-05,2]
[422718365,1779301839000,-2610.79,8.219e-05,2]
[422718370,1779301839000,-500.0,8.219e-05,2]
[422718357,1779301839000,-500.0,8.219e-05,2]
[422718359,1779301839000,-500.0,8.219e-05,2]
[422718371,1779301839000,-500.0,8.219e-05,2]
[422718381,1779301839000,-1226.64,8.219e-05,2]
[422718379,1779301839000,-1046.14,8.219e-05,2]
[422718377,1779301839000,-787.76,8.219e-05,2]
[422718375,1779301839000,-1972.88,8.219e-05,2]
[422718374,1779301839000,-500.0,8.219e-05,2]
[422718376,1779301839000,-1972.65,8.219e-05,2]
[422718372,1779301839000,-500.0,8.219e-05,2]
[422718373,1779301839000,-5851.38,8.219e-05,2]
[422718380,1779301839000,-1261.24,8.219e-05,2]
[422718378,1779301839000,-500.0,8.219e-05,2]
[422718383,1779301839000,-2562.66,8.219e-05,2]
[422718393,1779301839000,-579.67,8.219e-05,2]
[422718382,1779301839000,-500.0,8.219e-05,2]
[422718366,1779301839000,-29896.73,8.219e-05,2]
[422718394,1779301839000,-985.86,8.219e-05,2]
[422718369,1779301839000,-500.0,8.219e-05,2]
[422718355,1779301839000,-500.0,8.219e-05,2]
[422718329,1779301839000,-2851.55,8.219e-05,2]
[422718345,1779301839000,-500.0,8.219e-05,2]
[422718387,1779301839000,-1720.23,8.219e-05,2]
[422718325,1779301839000,-500.0,8.219e-05,2]
[422718327,1779301839000,-1024.69,8.219e-05,2]
[422718322,1779301839000,-500.0,8.219e-05,2]
[422718321,1779301839000,-549.84,8.219e-05,2]
[422718323,1779301839000,-500.0,8.219e-05,2]
[422718326,1779301839000,-500.0,8.219e-05,2]
[422718324,1779301839000,-500.0,8.219e-05,2]
[422718339,1779301839000,-151.0,8.219e-05,2]
[422718340,1779301839000,-670.64,8.219e-05,2]
[422718330,1779301839000,-500.0,8.219e-05,2]
[422718328,1779301839000,-500.0,8.219e-05,2]
[422718331,1779301839000,-2068.65,8.219e-05,2]
[422718332,1779301839000,-1357.75,8.219e-05,2]
[422718333,1779301839000,-500.0,8.219e-05,2]
[422718337,1779301839000,-500.0,8.219e-05,2]
[422718335,1779301839000,-500.0,8.219e-05,2]
[422718351,1779301839000,-500.0,8.219e-05,2]
[422718348,1779301839000,-1815.11,8.219e-05,2]
[422718350,1779301839000,-2285.15,8.219e-05,2]
[422718346,1779301839000,-262.170696,8.219e-05,2]
[422718349,1779301839000,-500.0,8.219e-05,2]
[422718353,1779301839000,-5945.74,8.219e-05,2]
[422718347,1779301839000,-1584.79,8.219e-05,2]
[422718352,1779301839000,-1214.55,8.219e-05,2]
[422718341,1779301839000,-1094.1376844,8.219e-05,2]
[422718344,1779301839000,-500.0,8.219e-05,2]
[422718342,1779301839000,-633.0323156,8.219e-05,2]
[422718338,1779301839000,-690.24,8.219e-05,2]
[422718336,1779301839000,-835.52,8.219e-05,2]
[422718334,1779301839000,-2125.89,8.219e-05,2]
[422718343,1779301839000,-151.0,8.219e-05,2]
[422718384,1779301839000,-1006.5,8.219e-05,2]
[422718425,1779301839000,-300.0,8.382e-05,2]
[422718388,1779301839000,-697.39,8.219e-05,2]
[422718431,1779301839000,-185.0,8.456e-05,2]
[422718427,1779301839000,-300.0,8.382e-05,2]
[422718428,1779301839000,-300.0,8.382e-05,2]
[422718435,1779301839000,-320.02447907,8.493e-05,2]
[422718429,1779301839000,-600.0,8.382e-05,2]
[422718430,1779301839000,-647.0,8.456e-05,2]
[422718433,1779301839000,-3432.207,8.493e-05,2]
[422718424,1779301839000,-300.0,8.382e-05,2]
[422718432,1779301839000,-443.0,8.456e-05,2]
[422718434,1779301839000,-657.4494,8.493e-05,2]
[422718436,1779301839000,-500.0,8.493e-05,2]
[422718438,1779301839000,-500.0,8.493e-05,2]
[422718437,1779301839000,-500.0,8.493e-05,2]
[422718439,1779301839000,-789.8,8.493e-05,2]
[422718423,1779301839000,-300.0,8.382e-05,2]
[422718440,1779301839000,-500.0,8.493e-05,2]
[422718448,1779301839000,-560.73,8.493e-05,2]
[422718450,1779301839000,-500.0,8.493e-05,2]
[422718452,1779301839000,-500.0,8.493e-05,2]
[422718447,1779301839000,-1328.63,8.493e-05,2]
[422718445,1779301839000,-500.0,8.493e-05,2]
[422718441,1779301839000,-500.0,8.493e-05,2]
[422718442,1779301839000,-655.44,8.493e-05,2]
[422718444,1779301839000,-515.9,8.493e-05,2]
[422718446,1779301839000,-500.0,8.493e-05,2]
[422718453,1779301839000,-629.0,8.493e-05,2]
[422718457,1779301839000,-1144.8,8.493e-05,2]
[422718455,1779301839000,-500.0,8.493e-05,2]
[422718386,1779301839000,-4907.49,8.219e-05,2]
[422718454,1779301839000,-500.0,8.493e-05,2]
[422718449,1779301839000,-500.0,8.493e-05,2]
[422718426,1779301839000,-300.0,8.382e-05,2]
[422718456,1779301839000,-500.0,8.493e-05,2]
[422718391,1779301839000,-500.0,8.219e-05,2]
[422718385,1779301839000,-434.66993479,8.219e-05,2]
[422718390,1779301839000,-1335.41,8.219e-05,2]
[422718392,1779301839000,-1696.27,8.219e-05,2]
[422718389,1779301839000,-500.0,8.219e-05,2]
[422718395,1779301839000,-1741.68,8.219e-05,2]
[422718396,1779301839000,-1162.15,8.219e-05,2]
[422718397,1779301839000,-5144.56,8.219e-05,2]
[422718404,1779301839000,-500.0,8.219e-05,2]
[422718419,1779301839000,-300.0,8.382e-05,2]
[422718407,1779301839000,-240.99718832,8.219e-05,2]
[422718399,1779301839000,-675.56,8.219e-05,2]
[422718406,1779301839000,-500.0,8.219e-05,2]
[422718400,1779301839000,-6801.99,8.219e-05,2]
[422718403,1779301839000,-500.0,8.219e-05,2]
[422718398,1779301839000,-1990.25,8.219e-05,2]
[422718405,1779301839000,-742.19,8.219e-05,2]
[422718402,1779301839000,-3224.8,8.219e-05,2]
[422718417,1779301839000,-300.0,8.382e-05,2]
[422718408,1779301839000,-2691.0,8.219e-05,2]
[422718415,1779301839000,-300.0,8.382e-05,2]
[422718416,1779301839000,-300.0,8.382e-05,2]
[422718418,1779301839000,-300.0,8.382e-05,2]
[422718412,1779301839000,-182.6965395,8.319e-05,7]
[422718411,1779301839000,-250.0,8.308e-05,2]
[422718414,1779301839000,-300.0,8.382e-05,2]
[422718409,1779301839000,-1299.74,8.219e-05,2]
[422718413,1779301839000,-434.66993476,8.356e-05,2]
[422718420,1779301839000,-300.0,8.382e-05,2]
[422718422,1779301839000,-300.0,8.382e-05,2]
[422718410,1779301839000,-500.0,8.219e-05,2]
[422718401,1779301839000,-151.0,8.219e-05,2]
[422718421,1779301839000,-300.0,8.382e-05,2]
[422718503,1779301840000,-500.0,8.493e-05,2]
[422718505,1779301840000,-500.0,8.493e-05,2]
[422718502,1779301840000,-3051.98,8.493e-05,2]
[422718515,1779301840000,-549.84,8.493e-05,2]
[422718513,1779301840000,-500.0,8.493e-05,2]
[422718500,1779301840000,-500.0,8.493e-05,2]
[422718498,1779301840000,-1021.79,8.493e-05,2]
[422718494,1779301840000,-611.08,8.493e-05,2]
[422718488,1779301840000,-500.0,8.493e-05,2]
[422718491,1779301840000,-1606.86,8.493e-05,2]
[422718501,1779301840000,-549.27,8.493e-05,2]
[422718496,1779301840000,-500.0,8.493e-05,2]
[422718497,1779301840000,-500.0,8.493e-05,2]
[422718517,1779301840000,-500.0,8.493e-05,2]
[422718524,1779301840000,-2068.65,8.493e-05,2]
[422718509,1779301840000,-500.0,8.493e-05,2]
[422718506,1779301840000,-578.13,8.493e-05,2]
[422718511,1779301840000,-772.04,8.493e-05,2]
[422718507,1779301840000,-500.0,8.493e-05,2]
[422718508,1779301840000,-500.0,8.493e-05,2]
[422718510,1779301840000,-597.58,8.493e-05,2]
[422718512,1779301840000,-743.2,8.493e-05,2]
[422718518,1779301840000,-500.0,8.493e-05,2]
[422718521,1779301840000,-1024.69,8.493e-05,2]
[422718522,1779301840000,-2851.55,8.493e-05,2]
[422718520,1779301840000,-500.0,8.493e-05,2]
[422718519,1779301840000,-500.0,8.493e-05,2]
[422718523,1779301840000,-500.0,8.493e-05,2]
[422718499,1779301840000,-1078.6,8.493e-05,2]
[422718504,1779301840000,-1028.78,8.493e-05,2]
[422718493,1779301840000,-578.39,8.493e-05,2]
[422718484,1779301840000,-500.0,8.493e-05,2]
[422718489,1779301840000,-676.26,8.493e-05,2]
[422718459,1779301840000,-151.0,8.493e-05,2]
[422718458,1779301840000,-500.0,8.493e-05,2]
[422718462,1779301840000,-500.0,8.493e-05,2]
[422718461,1779301840000,-500.0,8.493e-05,2]
[422718460,1779301840000,-151.0,8.493e-05,2]
[422718463,1779301840000,-618.41,8.493e-05,2]
[422718464,1779301840000,-500.0,8.493e-05,2]
[422718465,1779301840000,-623.1,8.493e-05,2]
[422718468,1779301840000,-1072.08,8.493e-05,2]
[422718466,1779301840000,-546.35,8.493e-05,2]
[422718469,1779301840000,-736.68,8.493e-05,2]
[422718471,1779301840000,-660.55,8.493e-05,2]
[422718470,1779301840000,-584.96079592,8.493e-05,2]
[422718467,1779301840000,-986.8,8.493e-05,2]
[422718472,1779301840000,-500.0,8.493e-05,2]
[422718473,1779301840000,-500.0,8.493e-05,2]
[422718485,1779301840000,-880.79,8.493e-05,2]
[422718486,1779301840000,-998.19,8.493e-05,2]
[422718475,1779301840000,-1509.14,8.493e-05,2]
[422718474,1779301840000,-500.0,8.493e-05,2]
[422718478,1779301840000,-500.0,8.493e-05,2]
[422718476,1779301840000,-500.0,8.493e-05,2]
[422718479,1779301840000,-500.0,8.493e-05,2]
[422718482,1779301840000,-2207.11,8.493e-05,2]
[422718480,1779301840000,-500.0,8.493e-05,2]
[422718477,1779301840000,-500.0,8.493e-05,2]
[422718487,1779301840000,-500.0,8.493e-05,2]
[422718490,1779301840000,-537.24,8.493e-05,2]
[422718495,1779301840000,-800.49,8.493e-05,2]
[422718492,1779301840000,-500.0,8.493e-05,2]
[422718525,1779301840000,-1357.75,8.493e-05,2]
[422718560,1779301840000,-2610.79,8.493e-05,2]
[422718530,1779301840000,-500.0,8.493e-05,2]
[422718566,1779301840000,-571.06719329,8.493e-05,2]
[422718572,1779301840000,-787.76,8.493e-05,2]
[422718567,1779301840000,-500.0,8.493e-05,2]
[422718590,1779301840000,-1741.68,8.493e-05,2]
[422718571,1779301840000,-1972.65,8.493e-05,2]
[422718564,1779301840000,-500.0,8.493e-05,2]
[422718570,1779301840000,-1972.88,8.493e-05,2]
[422718561,1779301840000,-29896.73,8.493e-05,2]
[422718568,1779301840000,-5851.38,8.493e-05,2]
[422718565,1779301840000,-500.0,8.493e-05,2]
[422718563,1779301840000,-3990.0,8.493e-05,2]
[422718569,1779301840000,-500.0,8.493e-05,2]
[422718575,1779301840000,-1261.24,8.493e-05,2]
[422718577,1779301840000,-500.0,8.493e-05,2]
[422718576,1779301840000,-1226.64,8.493e-05,2]
[422718585,1779301840000,-1335.41,8.493e-05,2]
[422718586,1779301840000,-500.0,8.493e-05,2]
[422718574,1779301840000,-1046.14,8.493e-05,2]
[422718584,1779301840000,-500.0,8.493e-05,2]
[422718582,1779301840000,-1720.23,8.493e-05,2]
[422718578,1779301840000,-2562.66,8.493e-05,2]
[422718579,1779301840000,-1006.5,8.493e-05,2]
[422718580,1779301840000,-4907.49,8.493e-05,2]
[422718581,1779301840000,-434.66993476,8.493e-05,2]
[422718583,1779301840000,-697.39,8.493e-05,2]
[422718588,1779301840000,-579.67,8.493e-05,2]
[422718589,1779301840000,-985.86,8.493e-05,2]
[422718587,1779301840000,-1696.27,8.493e-05,2]
[422718527,1779301840000,-2125.89,8.493e-05,2]
[422718562,1779301840000,-1576.69,8.493e-05,2]
[422718559,1779301840000,-848.41,8.493e-05,2]
[422718573,1779301840000,-500.0,8.493e-05,2]
[422718554,1779301840000,-500.0,8.493e-05,2]
[422718553,1779301840000,-3142.43,8.493e-05,2]
[422718526,1779301840000,-500.0,8.493e-05,2]
[422718528,1779301840000,-500.0,8.493e-05,2]
[422718531,1779301840000,-690.24,8.493e-05,2]
[422718533,1779301840000,-151.0,8.493e-05,2]
[422718544,1779301840000,-500.0,8.493e-05,2]
[422718532,1779301840000,-151.0,8.493e-05,2]
[422718543,1779301840000,-1815.11,8.493e-05,2]
[422718535,1779301840000,-670.64,8.493e-05,2]
[422718536,1779301840000,-1727.17,8.493e-05,2]
[422718537,1779301840000,-151.0,8.493e-05,2]
[422718534,1779301840000,-151.0,8.493e-05,2]
[422718542,1779301840000,-1584.79,8.493e-05,2]
[422718541,1779301840000,-500.0,8.493e-05,2]
[422718538,1779301840000,-151.0,8.493e-05,2]
[422718529,1779301840000,-835.52,8.493e-05,2]
[422718539,1779301840000,-151.0,8.493e-05,2]
[422718540,1779301840000,-500.0,8.493e-05,2]
[422718552,1779301840000,-500.0,8.493e-05,2]
[422718551,1779301840000,-5061.06,8.493e-05,2]
[422718550,1779301840000,-500.0,8.493e-05,2]
[422718558,1779301840000,-956.76,8.493e-05,2]
[422718557,1779301840000,-500.0,8.493e-05,2]
[422718555,1779301840000,-1870.68,8.493e-05,2]
[422718548,1779301840000,-5945.74,8.493e-05,2]
[422718549,1779301840000,-500.0,8.493e-05,2]
[422718545,1779301840000,-2285.15,8.493e-05,2]
[422718556,1779301840000,-966.34,8.493e-05,2]
[422718546,1779301840000,-500.0,8.493e-05,2]
[422718547,1779301840000,-1214.55,8.493e-05,2]
[422718632,1779301841000,-500.0,8.767e-05,2]
[422718633,1779301841000,-1144.8,8.767e-05,2]
[422718631,1779301841000,-500.0,8.767e-05,2]
[422718635,1779301841000,-500.0,8.767e-05,2]
[422718619,1779301841000,-500.0,8.767e-05,2]
[422718636,1779301841000,-500.0,8.767e-05,2]
[422718630,1779301841000,-500.0,8.767e-05,2]
[422718638,1779301841000,-500.0,8.767e-05,2]
[422718628,1779301841000,-500.0,8.767e-05,2]
[422718620,1779301841000,-655.44,8.767e-05,2]
[422718622,1779301841000,-500.0,8.767e-05,2]
[422718634,1779301841000,-500.0,8.767e-05,2]
[422718637,1779301841000,-618.41,8.767e-05,2]
[422718629,1779301841000,-629.0,8.767e-05,2]
[422718644,1779301841000,-660.55,8.767e-05,2]
[422718640,1779301841000,-546.35,8.767e-05,2]
[422718641,1779301841000,-986.8,8.767e-05,2]
[422718643,1779301841000,-736.68,8.767e-05,2]
[422718642,1779301841000,-1072.08,8.767e-05,2]
[422718645,1779301841000,-500.0,8.767e-05,2]
[422718646,1779301841000,-500.0,8.767e-05,2]
[422718647,1779301841000,-500.0,8.767e-05,2]
[422718650,1779301841000,-500.0,8.767e-05,2]
[422718649,1779301841000,-500.0,8.767e-05,2]
[422718648,1779301841000,-1509.14,8.767e-05,2]
[422718662,1779301841000,-500.0,8.767e-05,2]
[422718652,1779301841000,-500.0,8.767e-05,2]
[422718623,1779301841000,-500.0,8.767e-05,2]
[422718639,1779301841000,-623.1,8.767e-05,2]
[422718625,1779301841000,-560.73,8.767e-05,2]
[422718598,1779301841000,-500.0,8.493e-05,2]
[422718617,1779301841000,-789.8,8.767e-05,2]
[422718599,1779301841000,-742.19,8.493e-05,2]
[422718600,1779301841000,-2691.0,8.493e-05,2]
[422718591,1779301841000,-1162.15,8.493e-05,2]
[422718595,1779301841000,-6801.99,8.493e-05,2]
[422718596,1779301841000,-3224.8,8.493e-05,2]
[422718592,1779301841000,-5144.56,8.493e-05,2]
[422718597,1779301841000,-500.0,8.493e-05,2]
[422718593,1779301841000,-1990.25,8.493e-05,2]
[422718594,1779301841000,-675.56,8.493e-05,2]
[422718602,1779301841000,-500.0,8.493e-05,2]
[422718604,1779301841000,-500.0,8.541e-05,2]
[422718603,1779301841000,-914.05582933,8.5e-05,7]
[422718601,1779301841000,-1299.74,8.493e-05,2]
[422718607,1779301841000,-434.66993476,8.63e-05,2]
[422718611,1779301841000,-1680.0,8.708e-05,2]
[422718608,1779301841000,-831.0655423,8.667e-05,2]
[422718612,1779301841000,-3432.207,8.767e-05,2]
[422718613,1779301841000,-657.4494,8.767e-05,2]
[422718614,1779301841000,-500.0,8.767e-05,2]
[422718610,1779301841000,-420.0,8.708e-05,2]
[422718606,1779301841000,-169.369556,8.628e-05,2]
[422718605,1779301841000,-765.82409626,8.6e-05,2]
[422718609,1779301841000,-500.0,8.682e-05,2]
[422718616,1779301841000,-500.0,8.767e-05,2]
[422718621,1779301841000,-515.9,8.767e-05,2]
[422718626,1779301841000,-500.0,8.767e-05,2]
[422718615,1779301841000,-500.0,8.767e-05,2]
[422718627,1779301841000,-500.0,8.767e-05,2]
[422718618,1779301841000,-200.63283132,8.767e-05,2]
[422718624,1779301841000,-1328.63,8.767e-05,2]
[422718654,1779301841000,-500.0,8.767e-05,2]
[422718651,1779301841000,-500.0,8.767e-05,2]
[422718655,1779301841000,-880.79,8.767e-05,2]
[422718690,1779301841000,-2851.55,8.767e-05,2]
[422718692,1779301841000,-2068.65,8.767e-05,2]
[422718693,1779301841000,-1357.75,8.767e-05,2]
[422718691,1779301841000,-586.70759153,8.767e-05,2]
[422718701,1779301841000,-670.64,8.767e-05,2]
[422718699,1779301841000,-690.24,8.767e-05,2]
[422718700,1779301841000,-151.0,8.767e-05,2]
[422718695,1779301841000,-2125.89,8.767e-05,2]
[422718694,1779301841000,-500.0,8.767e-05,2]
[422718696,1779301841000,-500.0,8.767e-05,2]
[422718702,1779301841000,-1727.17,8.767e-05,2]
[422718697,1779301841000,-835.52,8.767e-05,2]
[422718698,1779301841000,-500.0,8.767e-05,2]
[422718715,1779301841000,-5061.06,8.767e-05,2]
[422718714,1779301841000,-500.0,8.767e-05,2]
[422718703,1779301841000,-151.0,8.767e-05,2]
[422718706,1779301841000,-1584.79,8.767e-05,2]
[422718705,1779301841000,-500.0,8.767e-05,2]
[422718707,1779301841000,-1815.11,8.767e-05,2]
[422718708,1779301841000,-500.0,8.767e-05,2]
[422718711,1779301841000,-1214.55,8.767e-05,2]
[422718709,1779301841000,-2285.15,8.767e-05,2]
[422718710,1779301841000,-500.0,8.767e-05,2]
[422718713,1779301841000,-500.0,8.767e-05,2]
[422718712,1779301841000,-5945.74,8.767e-05,2]
[422718716,1779301841000,-500.0,8.767e-05,2]
[422718718,1779301841000,-500.0,8.767e-05,2]
[422718717,1779301841000,-3142.43,8.767e-05,2]
[422718659,1779301841000,-676.26,8.767e-05,2]
[422718683,1779301841000,-500.0,8.767e-05,2]
[422718686,1779301841000,-500.0,8.767e-05,2]
[422718704,1779301841000,-500.0,8.767e-05,2]
[422718685,1779301841000,-500.0,8.767e-05,2]
[422718682,1779301841000,-743.2,8.767e-05,2]
[422718653,1779301841000,-2207.11,8.767e-05,2]
[422718656,1779301841000,-998.19,8.767e-05,2]
[422718660,1779301841000,-537.24,8.767e-05,2]
[422718658,1779301841000,-500.0,8.767e-05,2]
[422718657,1779301841000,-500.0,8.767e-05,2]
[422718663,1779301841000,-578.39,8.767e-05,2]
[422718668,1779301841000,-1078.6,8.767e-05,2]
[422718671,1779301841000,-549.27,8.767e-05,2]
[422718665,1779301841000,-800.49,8.767e-05,2]
[422718669,1779301841000,-1021.79,8.767e-05,2]
[422718664,1779301841000,-611.08,8.767e-05,2]
[422718673,1779301841000,-1028.78,8.767e-05,2]
[422718667,1779301841000,-500.0,8.767e-05,2]
[422718670,1779301841000,-500.0,8.767e-05,2]
[422718661,1779301841000,-1606.86,8.767e-05,2]
[422718680,1779301841000,-597.58,8.767e-05,2]
[422718666,1779301841000,-500.0,8.767e-05,2]
[422718681,1779301841000,-772.04,8.767e-05,2]
[422718684,1779301841000,-549.84,8.767e-05,2]
[422718687,1779301841000,-500.0,8.767e-05,2]
[422718679,1779301841000,-500.0,8.767e-05,2]
[422718689,1779301841000,-1024.69,8.767e-05,2]
[422718677,1779301841000,-500.0,8.767e-05,2]
[422718678,1779301841000,-500.0,8.767e-05,2]
[422718676,1779301841000,-578.13,8.767e-05,2]
[422718674,1779301841000,-500.0,8.767e-05,2]
[422718675,1779301841000,-500.0,8.767e-05,2]
[422718672,1779301841000,-3051.98,8.767e-05,2]
[422718688,1779301841000,-500.0,8.767e-05,2]
[422718757,1779301842000,-6801.99,8.767e-05,2]
[422718765,1779301842000,-202.81411987,8.88e-05,2]
[422718762,1779301842000,-2691.0,8.767e-05,2]
[422718770,1779301842000,-657.4494,9.041e-05,2]
[422718759,1779301842000,-500.0,8.767e-05,2]
[422718769,1779301842000,-3432.207,9.041e-05,2]
[422718745,1779301842000,-434.66993476,8.767e-05,2]
[422718758,1779301842000,-3224.8,8.767e-05,2]
[422718748,1779301842000,-500.0,8.767e-05,2]
[422718749,1779301842000,-1696.27,8.767e-05,2]
[422718751,1779301842000,-985.86,8.767e-05,2]
[422718764,1779301842000,-500.0,8.767e-05,2]
[422718750,1779301842000,-579.67,8.767e-05,2]
[422718768,1779301842000,-500.0,8.99e-05,2]
[422718761,1779301842000,-742.19,8.767e-05,2]
[422718776,1779301842000,-655.44,9.041e-05,2]
[422718763,1779301842000,-1299.74,8.767e-05,2]
[422718767,1779301842000,-365.39307901,8.932e-05,7]
[422718771,1779301842000,-500.0,9.041e-05,2]
[422718777,1779301842000,-515.9,9.041e-05,2]
[422718772,1779301842000,-500.0,9.041e-05,2]
[422718778,1779301842000,-500.0,9.041e-05,2]
[422718783,1779301842000,-500.0,9.041e-05,2]
[422718779,1779301842000,-1328.63,9.041e-05,2]
[422718782,1779301842000,-500.0,9.041e-05,2]
[422718781,1779301842000,-500.0,9.041e-05,2]
[422718774,1779301842000,-789.8,9.041e-05,2]
[422718780,1779301842000,-560.73,9.041e-05,2]
[422718775,1779301842000,-500.0,9.041e-05,2]
[422718773,1779301842000,-385.46742849,9.041e-05,2]
[422718760,1779301842000,-500.0,8.767e-05,2]
[422718753,1779301842000,-1162.15,8.767e-05,2]
[422718719,1779301842000,-1870.68,8.767e-05,2]
[422718746,1779301842000,-500.0,8.767e-05,2]
[422718785,1779301842000,-500.0,9.041e-05,2]
[422718722,1779301842000,-956.76,8.767e-05,2]
[422718721,1779301842000,-500.0,8.767e-05,2]
[422718724,1779301842000,-2610.79,8.767e-05,2]
[422718720,1779301842000,-966.34,8.767e-05,2]
[422718723,1779301842000,-848.41,8.767e-05,2]
[422718726,1779301842000,-1576.69,8.767e-05,2]
[422718725,1779301842000,-29896.73,8.767e-05,2]
[422718729,1779301842000,-500.0,8.767e-05,2]
[422718728,1779301842000,-500.00000056,8.767e-05,2]
[422718727,1779301842000,-3990.0,8.767e-05,2]
[422718731,1779301842000,-5851.38,8.767e-05,2]
[422718741,1779301842000,-1006.5,8.767e-05,2]
[422718742,1779301842000,-4907.49,8.767e-05,2]
[422718752,1779301842000,-1741.68,8.767e-05,2]
[422718733,1779301842000,-1972.88,8.767e-05,2]
[422718740,1779301842000,-2562.66,8.767e-05,2]
[422718732,1779301842000,-500.0,8.767e-05,2]
[422718737,1779301842000,-1046.14,8.767e-05,2]
[422718735,1779301842000,-787.76,8.767e-05,2]
[422718736,1779301842000,-500.0,8.767e-05,2]
[422718734,1779301842000,-1972.65,8.767e-05,2]
[422718738,1779301842000,-1261.24,8.767e-05,2]
[422718739,1779301842000,-1226.64,8.767e-05,2]
[422718744,1779301842000,-697.39,8.767e-05,2]
[422718754,1779301842000,-5144.56,8.767e-05,2]
[422718755,1779301842000,-1990.25,8.767e-05,2]
[422718756,1779301842000,-675.56,8.767e-05,2]
[422718743,1779301842000,-1720.23,8.767e-05,2]
[422718747,1779301842000,-1335.41,8.767e-05,2]
[422718730,1779301842000,-500.0,8.767e-05,2]
[422718795,1779301842000,-546.35,9.041e-05,2]
[422718766,1779301842000,-170.1587,8.904e-05,2]
[422718796,1779301842000,-986.8,9.041e-05,2]
[422718817,1779301842000,-537.24,9.041e-05,2]